[Event "*** Titled Tuesday Blitz"]
[Site "Chess.com"]
[Date "2018.09.04"]
[Round "6"]
[White "ChessicallyInclined"]
[Black "tony15051987"]
[Result "0-1"]
[WhiteElo "2339"]
[BlackElo "2453"]
[TimeControl "180+2"]
[EndTime "14:49:58 PDT"]
[Termination "tony15051987 won by resignation"]

1. e4 {[%clk 0:03:01.9]} 1... c5 {[%clk 0:03:00.2]} 2. Nf3 {[%clk 0:03:03.1]}
2... e6 {[%clk 0:03:01.4]} 3. d4 {[%clk 0:03:04.6]} 3... cxd4 {[%clk 0:03:02.4]}
4. Nxd4 {[%clk 0:03:06.5]} 4... Nc6 {[%clk 0:03:03.6]} 5. Nc3 {[%clk 0:03:07.5]}
5... Qc7 {[%clk 0:03:04.7]} 6. g3 {[%clk 0:03:07.8]} 6... a6 {[%clk 0:03:04.8]}
7. Bg2 {[%clk 0:03:08.7]} 7... Nge7 {[%clk 0:03:05.7]} 8. O-O {[%clk 0:03:10]}
8... Nxd4 {[%clk 0:03:06.1]} 9. Qxd4 {[%clk 0:03:10.5]} 9... Nc6 {[%clk
0:03:07.7]} 10. Qd1 {[%clk 0:03:07.7]} 10... Be7 {[%clk 0:03:08.4]} 11. Re1
{[%clk 0:03:07.8]} 11... O-O {[%clk 0:03:01.9]} 12. Bf4 {[%clk 0:03:08.1]} 12...
d6 {[%clk 0:03:01.9]} 13. Qd2 {[%clk 0:03:07.2]} 13... Ne5 {[%clk 0:03:01.3]}
14. Rad1 {[%clk 0:03:04.9]} 14... b5 {[%clk 0:02:58.5]} 15. a3 {[%clk
0:02:56.5]} 15... Rd8 {[%clk 0:02:58.7]} 16. Bg5 {[%clk 0:02:56.4]} 16... Bb7
{[%clk 0:02:56]} 17. Bxe7 {[%clk 0:02:56.6]} 17... Qxe7 {[%clk 0:02:56.7]} 18.
f4 {[%clk 0:02:57.8]} 18... Nc4 {[%clk 0:02:56.7]} 19. Qc1 {[%clk 0:02:58.6]}
19... Qc7 {[%clk 0:02:53.6]} 20. Rd3 {[%clk 0:02:43.3]} 20... Rac8 {[%clk
0:02:51]} 21. f5 {[%clk 0:02:39.6]} 21... Qc5+ {[%clk 0:02:31.1]} 22. Kh1 {[%clk
0:02:37.1]} 22... Ne5 {[%clk 0:02:24.1]} 23. Rdd1 {[%clk 0:02:36.3]} 23... Ng4
{[%clk 0:02:21.2]} 24. Rf1 {[%clk 0:02:06.2]} 24... Nf2+ {[%clk 0:02:21.3]} 25.
Rxf2 {[%clk 0:02:07.7]} 25... Qxf2 {[%clk 0:02:22.1]} 26. fxe6 {[%clk
0:02:09.4]} 26... fxe6 {[%clk 0:02:22.2]} 27. Bh3 {[%clk 0:02:09]} 27... Rxc3
{[%clk 0:02:19.1]} 28. Bxe6+ {[%clk 0:01:35.1]} 28... Kh8 {[%clk 0:02:18.6]} 0-1

[Event "*** Titled Tuesday Blitz"]
[Site "Chess.com"]
[Date "2018.09.04"]
[Round "6"]
[White "dimke2802"]
[Black "gkchesstiger"]
[Result "0-1"]
[WhiteElo "2425"]
[BlackElo "2754"]
[TimeControl "180+2"]
[EndTime "14:50:19 PDT"]
[Termination "gkchesstiger won by resignation"]

1. d4 {[%clk 0:03:01.6]} 1... f5 {[%clk 0:02:57.7]} 2. Nf3 {[%clk 0:02:47.6]}
2... Nf6 {[%clk 0:02:58.2]} 3. g3 {[%clk 0:02:46.8]} 3... g6 {[%clk 0:02:58.6]}
4. Bg2 {[%clk 0:02:47.7]} 4... Bg7 {[%clk 0:02:58.8]} 5. O-O {[%clk 0:02:48.7]}
5... d6 {[%clk 0:02:58.9]} 6. c4 {[%clk 0:02:49.2]} 6... O-O {[%clk 0:02:59]} 7.
Nc3 {[%clk 0:02:49.9]} 7... c6 {[%clk 0:02:59.1]} 8. Rb1 {[%clk 0:02:49.1]} 8...
a5 {[%clk 0:02:54.1]} 9. a3 {[%clk 0:02:42.1]} 9... Ne4 {[%clk 0:02:53.4]} 10.
Na4 {[%clk 0:02:36]} 10... Kh8 {[%clk 0:02:37.6]} 11. c5 {[%clk 0:02:36.7]}
11... Be6 {[%clk 0:02:35.5]} 12. b3 {[%clk 0:02:27]} 12... Nd7 {[%clk
0:02:34.9]} 13. Qc2 {[%clk 0:02:27]} 13... Bd5 {[%clk 0:02:24.6]} 14. Rd1 {[%clk
0:02:22.5]} 14... Qe8 {[%clk 0:02:09.4]} 15. Nd2 {[%clk 0:02:06.5]} 15... Nxd2
{[%clk 0:02:07.9]} 16. Qxd2 {[%clk 0:02:03.8]} 16... Bxg2 {[%clk 0:02:07.8]} 17.
Kxg2 {[%clk 0:02:04.6]} 17... d5 {[%clk 0:02:01.4]} 18. Qc2 {[%clk 0:01:55.4]}
18... e5 {[%clk 0:02:01.9]} 19. dxe5 {[%clk 0:01:56.2]} 19... Nxe5 {[%clk
0:01:55.8]} 20. Bb2 {[%clk 0:01:55.6]} 20... Qe7 {[%clk 0:01:55.5]} 21. e3
{[%clk 0:01:54]} 21... g5 {[%clk 0:01:54.8]} 22. Bd4 {[%clk 0:01:51.3]} 22...
Rae8 {[%clk 0:01:54.8]} 23. Re1 {[%clk 0:01:50.8]} 23... Qf7 {[%clk 0:01:53.2]}
24. Qc3 {[%clk 0:01:49.8]} 24... Qh5 {[%clk 0:01:52.4]} 25. f4 {[%clk
0:01:35.6]} 25... Qf3+ {[%clk 0:01:52.9]} 26. Kg1 {[%clk 0:01:36.4]} 26... gxf4
{[%clk 0:01:53.3]} 27. gxf4 {[%clk 0:01:35.2]} 27... Rg8 {[%clk 0:01:52.7]} 0-1

[Event "*** Titled Tuesday Blitz"]
[Site "Chess.com"]
[Date "2018.09.04"]
[Round "6"]
[White "Schachmalanders"]
[Black "Godzillator"]
[Result "1-0"]
[WhiteElo "2372"]
[BlackElo "2294"]
[TimeControl "180+2"]
[EndTime "14:50:24 PDT"]
[Termination "Schachmalanders won by checkmate"]

1. e4 {[%clk 0:03:01.9]} 1... c6 {[%clk 0:03:00.5]} 2. Nf3 {[%clk 0:03:02.2]}
2... d5 {[%clk 0:03:01.5]} 3. exd5 {[%clk 0:03:04.1]} 3... cxd5 {[%clk
0:03:01.9]} 4. Ne5 {[%clk 0:03:05.6]} 4... a6 {[%clk 0:03:02]} 5. d4 {[%clk
0:03:05.8]} 5... Nc6 {[%clk 0:03:02.3]} 6. Nxc6 {[%clk 0:03:05.8]} 6... bxc6
{[%clk 0:03:03.1]} 7. Bd3 {[%clk 0:03:07.5]} 7... Nf6 {[%clk 0:03:03.5]} 8. O-O
{[%clk 0:03:08.8]} 8... Bg4 {[%clk 0:03:04.1]} 9. f3 {[%clk 0:03:09.2]} 9... Bh5
{[%clk 0:03:05.2]} 10. Re1 {[%clk 0:03:10.4]} 10... Bg6 {[%clk 0:03:05.4]} 11.
c3 {[%clk 0:03:09.1]} 11... e6 {[%clk 0:03:06.3]} 12. Bf4 {[%clk 0:03:08.4]}
12... Bd6 {[%clk 0:03:07]} 13. Bxd6 {[%clk 0:03:09]} 13... Qxd6 {[%clk
0:03:07.8]} 14. Re2 {[%clk 0:02:47.7]} 14... c5 {[%clk 0:02:59.3]} 15. g3 {[%clk
0:02:26.8]} 15... cxd4 {[%clk 0:02:57.3]} 16. cxd4 {[%clk 0:02:28.7]} 16... Bxd3
{[%clk 0:02:55.7]} 17. Qxd3 {[%clk 0:02:29.4]} 17... O-O {[%clk 0:02:57.3]} 18.
Nd2 {[%clk 0:02:29.6]} 18... Rfc8 {[%clk 0:02:56.1]} 19. Nb3 {[%clk 0:02:30.6]}
19... Nd7 {[%clk 0:02:55.3]} 20. f4 {[%clk 0:02:29.9]} 20... g6 {[%clk 0:02:56]}
21. Rae1 {[%clk 0:02:28.4]} 21... Rc4 {[%clk 0:02:55.3]} 22. Nd2 {[%clk
0:02:23.2]} 22... Rc6 {[%clk 0:02:54.8]} 23. Nf3 {[%clk 0:02:24]} 23... Rac8
{[%clk 0:02:55.5]} 24. Ne5 {[%clk 0:02:24.7]} 24... Nxe5 {[%clk 0:02:56.7]} 25.
fxe5 {[%clk 0:02:25.9]} 25... Qb4 {[%clk 0:02:56]} 26. Rf1 {[%clk 0:02:24.9]}
26... Rc4 {[%clk 0:02:56.9]} 27. Rf4 {[%clk 0:02:21.7]} 27... Rc1+ {[%clk
0:02:54.9]} 28. Kg2 {[%clk 0:02:22.9]} 28... R8c7 {[%clk 0:02:46.8]} 29. Qxa6
{[%clk 0:02:18.4]} 29... Re1 {[%clk 0:02:38.8]} 30. Ref2 {[%clk 0:02:11.2]}
30... Rb1 {[%clk 0:02:28.3]} 31. Qa8+ {[%clk 0:02:07.7]} 31... Kg7 {[%clk
0:02:28.7]} 32. Qe8 {[%clk 0:02:05.5]} 32... Rxb2 {[%clk 0:02:20.4]} 33. Rxf7+
{[%clk 0:02:05.4]} 33... Rxf7 {[%clk 0:02:21.1]} 34. Qxf7+ {[%clk 0:02:07.3]}
34... Kh6 {[%clk 0:02:22.1]} 35. Qf4+ {[%clk 0:02:03.4]} 35... g5 {[%clk
0:02:20.2]} 36. Qf6+ {[%clk 0:02:02.2]} 36... Kh5 {[%clk 0:02:21.3]} 37. g4+
{[%clk 0:01:32.7]} 37... Kxg4 {[%clk 0:02:19.2]} 38. Qf3+ {[%clk 0:01:33.4]}
38... Kh4 {[%clk 0:02:20.4]} 39. Qh3# {[%clk 0:01:35.3]} 1-0

[Event "*** Titled Tuesday Blitz"]
[Site "Chess.com"]
[Date "2018.09.04"]
[Round "6"]
[White "northridgehawk"]
[Black "HanSchut"]
[Result "0-1"]
[WhiteElo "2122"]
[BlackElo "2218"]
[TimeControl "180+2"]
[EndTime "14:50:28 PDT"]
[Termination "HanSchut won by resignation"]

1. e4 {[%clk 0:02:59]} 1... c5 {[%clk 0:02:58.4]} 2. Nf3 {[%clk 0:02:57]} 2...
d6 {[%clk 0:02:53.7]} 3. d4 {[%clk 0:02:58.9]} 3... cxd4 {[%clk 0:02:55.2]} 4.
Nxd4 {[%clk 0:03:00]} 4... Nf6 {[%clk 0:02:56.8]} 5. Nc3 {[%clk 0:03:01.4]} 5...
a6 {[%clk 0:02:58.2]} 6. h3 {[%clk 0:03:02.8]} 6... e6 {[%clk 0:02:59.1]} 7. g4
{[%clk 0:03:04]} 7... d5 {[%clk 0:03:00.4]} 8. exd5 {[%clk 0:03:03.9]} 8... Nxd5
{[%clk 0:03:02.3]} 9. Nxd5 {[%clk 0:03:03.4]} 9... Qxd5 {[%clk 0:03:00.5]} 10.
Nf3 {[%clk 0:03:04]} 10... Qxd1+ {[%clk 0:03:00.3]} 11. Kxd1 {[%clk 0:03:05.9]}
11... Bc5 {[%clk 0:02:58.3]} 12. Ke1 {[%clk 0:03:03]} 12... Nc6 {[%clk
0:02:58.8]} 13. Bg2 {[%clk 0:03:03.8]} 13... Nb4 {[%clk 0:02:53.6]} 14. Kd1
{[%clk 0:02:52.9]} 14... Bxf2 {[%clk 0:02:48.6]} 15. Bf4 {[%clk 0:02:42.1]}
15... O-O {[%clk 0:02:45.4]} 16. Ke2 {[%clk 0:02:43.1]} 16... Bc5 {[%clk
0:02:41.2]} 17. c3 {[%clk 0:02:44.3]} 17... Nd5 {[%clk 0:02:39.4]} 18. Bg3
{[%clk 0:02:44.3]} 18... Ne3 {[%clk 0:02:35.2]} 19. Bf1 {[%clk 0:02:35.7]} 19...
Bd7 {[%clk 0:02:05.8]} 20. a4 {[%clk 0:02:37]} 20... Nxf1 {[%clk 0:01:57.3]} 21.
Rhxf1 {[%clk 0:02:37.5]} 21... Rfd8 {[%clk 0:01:44.2]} 22. Ne5 {[%clk
0:02:37.9]} 22... Be8 {[%clk 0:01:41.9]} 23. Nd3 {[%clk 0:02:34]} 23... Be7
{[%clk 0:01:39.9]} 24. Bf2 {[%clk 0:02:33.4]} 24... b5 {[%clk 0:01:33.3]} 25.
Bb6 {[%clk 0:02:29.4]} 25... Rdb8 {[%clk 0:01:24.8]} 26. axb5 {[%clk 0:02:28.3]}
26... Rxb6 {[%clk 0:01:20.9]} 27. bxa6 {[%clk 0:02:29]} 27... Rbxa6 {[%clk
0:01:22]} 28. Rad1 {[%clk 0:02:29.8]} 28... Bb5 {[%clk 0:01:21.8]} 29. Ke3
{[%clk 0:02:31.1]} 29... Rd6 {[%clk 0:01:18.5]} 30. Ne5 {[%clk 0:02:30.7]} 30...
Rxd1 {[%clk 0:01:19.1]} 31. Rxd1 {[%clk 0:02:32]} 31... Rd8 {[%clk 0:01:14.7]}
32. Ra1 {[%clk 0:02:32.5]} 32... f6 {[%clk 0:01:12.4]} 33. Nf3 {[%clk
0:02:33.5]} 33... Rd3+ {[%clk 0:01:12.6]} 34. Kf2 {[%clk 0:02:34.2]} 34... Bc5+
{[%clk 0:01:13.5]} 35. Kg2 {[%clk 0:02:35.5]} 35... Bc6 {[%clk 0:01:13.7]} 0-1

[Event "*** Titled Tuesday Blitz"]
[Site "Chess.com"]
[Date "2018.09.04"]
[Round "6"]
[White "Quiet_Desperation"]
[Black "Blagorod"]
[Result "0-1"]
[WhiteElo "1899"]
[BlackElo "2013"]
[TimeControl "180+2"]
[EndTime "14:50:34 PDT"]
[Termination "Blagorod won by resignation"]

1. e4 {[%clk 0:03:01.9]} 1... e5 {[%clk 0:03:00.4]} 2. Nf3 {[%clk 0:03:02.8]}
2... Nf6 {[%clk 0:03:01.5]} 3. Nxe5 {[%clk 0:03:03.5]} 3... d6 {[%clk
0:03:02.4]} 4. Nf3 {[%clk 0:03:04.8]} 4... Nxe4 {[%clk 0:03:03.9]} 5. d4 {[%clk
0:03:06.2]} 5... d5 {[%clk 0:03:05.2]} 6. h3 {[%clk 0:03:07]} 6... Nc6 {[%clk
0:03:03.2]} 7. c4 {[%clk 0:03:08.1]} 7... Be7 {[%clk 0:02:55.5]} 8. Bd3 {[%clk
0:03:07.5]} 8... O-O {[%clk 0:02:49.8]} 9. O-O {[%clk 0:02:58.8]} 9... Nb4
{[%clk 0:02:49.4]} 10. cxd5 {[%clk 0:02:54.1]} 10... Nxd3 {[%clk 0:02:42.7]} 11.
Qxd3 {[%clk 0:02:55.1]} 11... Qxd5 {[%clk 0:02:43]} 12. Nc3 {[%clk 0:02:56.3]}
12... Nxc3 {[%clk 0:02:43.4]} 13. bxc3 {[%clk 0:02:58.2]} 13... Bf5 {[%clk
0:02:42.7]} 14. Qe2 {[%clk 0:02:54.8]} 14... Bf6 {[%clk 0:02:07]} 15. c4 {[%clk
0:02:53.6]} 15... Qd6 {[%clk 0:01:55.7]} 16. Be3 {[%clk 0:02:51]} 16... Rfe8
{[%clk 0:01:53.4]} 17. Rfd1 {[%clk 0:02:43.7]} 17... Re7 {[%clk 0:01:45]} 18.
Qb2 {[%clk 0:02:40.5]} 18... b6 {[%clk 0:01:44.5]} 19. a4 {[%clk 0:02:40.2]}
19... Qc6 {[%clk 0:01:40.9]} 20. Qb4 {[%clk 0:02:24.5]} 20... a5 {[%clk
0:01:33.1]} 21. Qb3 {[%clk 0:02:13.5]} 21... Bxh3 {[%clk 0:01:33]} 22. d5 {[%clk
0:02:14.9]} 22... Qd7 {[%clk 0:01:31]} 23. gxh3 {[%clk 0:02:16]} 23... Bxa1
{[%clk 0:01:31.9]} 24. Rxa1 {[%clk 0:02:16.9]} 24... Qxh3 {[%clk 0:01:32.5]} 25.
Bf4 {[%clk 0:02:09]} 25... Rae8 {[%clk 0:01:23.3]} 26. Bg3 {[%clk 0:02:08.8]}
26... h5 {[%clk 0:01:16.6]} 27. Qd3 {[%clk 0:02:04.2]} 27... Qg4 {[%clk
0:01:16]} 28. Qd4 {[%clk 0:01:52.2]} 28... Qxf3 {[%clk 0:01:12.9]} 29. d6 {[%clk
0:01:50.8]} 29... Re1+ {[%clk 0:01:13]} 0-1

[Event "*** Titled Tuesday Blitz"]
[Site "Chess.com"]
[Date "2018.09.04"]
[Round "6"]
[White "HonzaVykouk"]
[Black "snowlord"]
[Result "1-0"]
[WhiteElo "2565"]
[BlackElo "2697"]
[TimeControl "180+2"]
[EndTime "14:51:14 PDT"]
[Termination "HonzaVykouk won by checkmate"]

1. e4 {[%clk 0:02:59.5]} 1... c5 {[%clk 0:02:49.9]} 2. Nf3 {[%clk 0:02:58.4]}
2... d6 {[%clk 0:02:50.3]} 3. d4 {[%clk 0:02:58.9]} 3... cxd4 {[%clk 0:02:51.2]}
4. Nxd4 {[%clk 0:03:00.7]} 4... Nf6 {[%clk 0:02:52.8]} 5. Nc3 {[%clk 0:03:00.1]}
5... a6 {[%clk 0:02:54.3]} 6. Bg5 {[%clk 0:03:00.3]} 6... Nbd7 {[%clk
0:02:54.6]} 7. Qe2 {[%clk 0:02:59.5]} 7... g6 {[%clk 0:02:54.8]} 8. f4 {[%clk
0:02:59.3]} 8... Bg7 {[%clk 0:02:50.6]} 9. e5 {[%clk 0:02:56.6]} 9... O-O {[%clk
0:02:50.5]} 10. O-O-O {[%clk 0:02:54.4]} 10... dxe5 {[%clk 0:02:50.5]} 11. fxe5
{[%clk 0:02:54.6]} 11... Qa5 {[%clk 0:02:51.5]} 12. Nf3 {[%clk 0:02:52.6]} 12...
Ng4 {[%clk 0:02:51]} 13. Rd5 {[%clk 0:02:53.5]} 13... b5 {[%clk 0:02:49.8]} 14.
h3 {[%clk 0:02:52.2]} 14... e6 {[%clk 0:02:20.2]} 15. Rxd7 {[%clk 0:02:49.2]}
15... b4 {[%clk 0:02:17.3]} 16. hxg4 {[%clk 0:02:47.7]} 16... bxc3 {[%clk
0:02:16.7]} 17. Rd3 {[%clk 0:02:45.8]} 17... Qxa2 {[%clk 0:02:08.5]} 18. Rxc3
{[%clk 0:02:44.2]} 18... Rb8 {[%clk 0:02:01.8]} 19. b3 {[%clk 0:02:37.1]} 19...
Bb7 {[%clk 0:01:55.5]} 20. Qe1 {[%clk 0:02:26.1]} 20... Rfc8 {[%clk 0:01:03]}
21. Bc4 {[%clk 0:02:20.6]} 21... Bd5 {[%clk 0:00:48.6]} 22. Qh4 {[%clk
0:02:14.9]} 22... h5 {[%clk 0:00:34.9]} 23. gxh5 {[%clk 0:02:14.4]} 23... Bxc4
{[%clk 0:00:27.9]} 24. hxg6 {[%clk 0:02:10.8]} 24... Bxb3 {[%clk 0:00:16.2]} 25.
Qh7+ {[%clk 0:02:06.8]} 25... Kf8 {[%clk 0:00:16.8]} 26. Qh8+ {[%clk 0:02:06.3]}
26... Bxh8 {[%clk 0:00:16.2]} 27. Rxh8+ {[%clk 0:02:08.1]} 27... Kg7 {[%clk
0:00:18.1]} 28. Bf6+ {[%clk 0:02:09.7]} 28... Kxg6 {[%clk 0:00:18]} 29. Nh4#
{[%clk 0:02:11.5]} 1-0

[Event "*** Titled Tuesday Blitz"]
[Site "Chess.com"]
[Date "2018.09.04"]
[Round "6"]
[White "51616516516"]
[Black "PowerThinking2650"]
[Result "1-0"]
[WhiteElo "2209"]
[BlackElo "2229"]
[TimeControl "180+2"]
[EndTime "14:51:31 PDT"]
[Termination "51616516516 won by resignation"]

1. d4 {[%clk 0:02:59]} 1... Nf6 {[%clk 0:02:58.6]} 2. c4 {[%clk 0:02:59.4]} 2...
g6 {[%clk 0:02:59.5]} 3. Nf3 {[%clk 0:03:00.2]} 3... Bg7 {[%clk 0:03:00.7]} 4.
g3 {[%clk 0:03:01.4]} 4... O-O {[%clk 0:03:02.1]} 5. Bg2 {[%clk 0:03:01.3]} 5...
d6 {[%clk 0:03:02.6]} 6. O-O {[%clk 0:02:59.5]} 6... Nbd7 {[%clk 0:03:02.6]} 7.
Nc3 {[%clk 0:02:58.5]} 7... e5 {[%clk 0:03:01.7]} 8. e4 {[%clk 0:02:58.8]} 8...
exd4 {[%clk 0:03:02.4]} 9. Nxd4 {[%clk 0:03:00.7]} 9... Re8 {[%clk 0:03:03.5]}
10. Be3 {[%clk 0:03:00.6]} 10... Nb6 {[%clk 0:02:49]} 11. b3 {[%clk 0:02:55.9]}
11... Ng4 {[%clk 0:02:44.5]} 12. Bf4 {[%clk 0:02:33.2]} 12... c6 {[%clk
0:02:30.1]} 13. h3 {[%clk 0:02:31]} 13... Ne5 {[%clk 0:02:29]} 14. Be3 {[%clk
0:02:28.5]} 14... Qf6 {[%clk 0:02:01.9]} 15. Qd2 {[%clk 0:02:01.8]} 15... Nexc4
{[%clk 0:01:50]} 16. bxc4 {[%clk 0:01:59.6]} 16... Nxc4 {[%clk 0:01:49.9]} 17.
Qe2 {[%clk 0:02:00.2]} 17... Nxe3 {[%clk 0:01:49.6]} 18. fxe3 {[%clk 0:02:02.1]}
18... Qg5 {[%clk 0:01:44.3]} 19. Qf3 {[%clk 0:01:56.6]} 19... Re6 {[%clk
0:01:33.3]} 20. Qxf7+ {[%clk 0:01:52.7]} 20... Kh8 {[%clk 0:01:32.5]} 21. Nxe6
{[%clk 0:01:36.5]} 21... Bxe6 {[%clk 0:01:29.5]} 22. Qxe6 {[%clk 0:01:36.9]}
22... Qxe3+ {[%clk 0:01:30.4]} 23. Kh2 {[%clk 0:01:33.3]} 23... Bxc3 {[%clk
0:01:20.3]} 24. Rad1 {[%clk 0:01:23.2]} 24... Be5 {[%clk 0:01:19.2]} 25. Rf3
{[%clk 0:01:23.4]} 25... Qh6 {[%clk 0:01:16.2]} 26. Rdf1 {[%clk 0:01:10.2]} 1-0

[Event "*** Titled Tuesday Blitz"]
[Site "Chess.com"]
[Date "2018.09.04"]
[Round "6"]
[White "Alopekos"]
[Black "ramses135"]
[Result "0-1"]
[WhiteElo "2436"]
[BlackElo "2530"]
[TimeControl "180+2"]
[EndTime "14:51:38 PDT"]
[Termination "ramses135 won by resignation"]

1. e4 {[%clk 0:03:01.6]} 1... e5 {[%clk 0:02:54]} 2. Nf3 {[%clk 0:03:02.4]} 2...
Nc6 {[%clk 0:02:55.6]} 3. Bb5 {[%clk 0:03:03.9]} 3... Nge7 {[%clk 0:02:56.2]} 4.
O-O {[%clk 0:03:02.6]} 4... g6 {[%clk 0:02:53.7]} 5. Nc3 {[%clk 0:03:00.6]} 5...
Bg7 {[%clk 0:02:53.3]} 6. Nd5 {[%clk 0:02:51.1]} 6... O-O {[%clk 0:02:48.2]} 7.
Re1 {[%clk 0:02:44.7]} 7... d6 {[%clk 0:02:41.8]} 8. d4 {[%clk 0:02:11.6]} 8...
Nxd5 {[%clk 0:02:26.3]} 9. exd5 {[%clk 0:02:03.6]} 9... Nxd4 {[%clk 0:02:27.2]}
10. Nxd4 {[%clk 0:02:02.9]} 10... exd4 {[%clk 0:02:29.1]} 11. Qe2 {[%clk
0:01:56.8]} 11... Bd7 {[%clk 0:01:51.3]} 12. Bg5 {[%clk 0:01:30.8]} 12... Bxb5
{[%clk 0:01:41.6]} 13. Bxd8 {[%clk 0:01:23.7]} 13... Bxe2 {[%clk 0:01:42.4]} 14.
Be7 {[%clk 0:01:25.3]} 14... Bc4 {[%clk 0:01:24.2]} 15. Bxf8 {[%clk 0:01:24.6]}
15... Kxf8 {[%clk 0:01:26.1]} 16. Rad1 {[%clk 0:01:14.3]} 16... Bxd5 {[%clk
0:01:22.7]} 17. f3 {[%clk 0:01:11.5]} 17... c5 {[%clk 0:01:22.1]} 18. Kf2 {[%clk
0:01:11.7]} 18... Re8 {[%clk 0:01:19.9]} 19. g4 {[%clk 0:01:01.4]} 19... Rxe1
{[%clk 0:01:17.3]} 20. Rxe1 {[%clk 0:01:02.3]} 20... Bh6 {[%clk 0:01:17.8]} 21.
Kg3 {[%clk 0:00:58.3]} 21... Be3 {[%clk 0:01:17.3]} 22. a3 {[%clk 0:00:56.6]}
22... b5 {[%clk 0:01:14.7]} 23. h4 {[%clk 0:00:56]} 23... a5 {[%clk 0:01:09.6]}
24. f4 {[%clk 0:00:56]} 24... Be4 {[%clk 0:01:04.3]} 25. Re2 {[%clk 0:00:55.9]}
25... f5 {[%clk 0:01:03.9]} 26. gxf5 {[%clk 0:00:50.7]} 26... gxf5 {[%clk
0:01:05.8]} 0-1

[Event "*** Titled Tuesday Blitz"]
[Site "Chess.com"]
[Date "2018.09.04"]
[Round "6"]
[White "chessmaxusa"]
[Black "maziarbagheri"]
[Result "1-0"]
[WhiteElo "2499"]
[BlackElo "2312"]
[TimeControl "180+2"]
[EndTime "14:51:40 PDT"]
[Termination "chessmaxusa won by resignation"]

1. d4 {[%clk 0:03:01.9]} 1... d5 {[%clk 0:02:58.9]} 2. Nf3 {[%clk 0:03:03.2]}
2... Nf6 {[%clk 0:02:58]} 3. Bf4 {[%clk 0:03:04.6]} 3... c6 {[%clk 0:02:58.6]}
4. e3 {[%clk 0:03:05.8]} 4... Bf5 {[%clk 0:02:57.6]} 5. Be2 {[%clk 0:03:06.8]}
5... e6 {[%clk 0:02:58.4]} 6. O-O {[%clk 0:03:06.7]} 6... Bd6 {[%clk 0:02:59.3]}
7. Ne5 {[%clk 0:03:08.1]} 7... O-O {[%clk 0:02:58.6]} 8. Nd2 {[%clk 0:03:09.5]}
8... Bxe5 {[%clk 0:02:53.9]} 9. Bxe5 {[%clk 0:03:08.7]} 9... Nbd7 {[%clk
0:02:54.8]} 10. Bg3 {[%clk 0:03:08.3]} 10... Re8 {[%clk 0:02:55.9]} 11. c4
{[%clk 0:03:06.2]} 11... Ne4 {[%clk 0:02:55.1]} 12. Nxe4 {[%clk 0:03:06.6]}
12... Bxe4 {[%clk 0:02:57]} 13. Qb3 {[%clk 0:03:07.5]} 13... Qb6 {[%clk
0:02:57.2]} 14. Rac1 {[%clk 0:03:03.8]} 14... Qxb3 {[%clk 0:02:56.4]} 15. axb3
{[%clk 0:03:02.4]} 15... Rac8 {[%clk 0:02:53.4]} 16. h3 {[%clk 0:03:02.2]} 16...
f6 {[%clk 0:02:43.5]} 17. Rfe1 {[%clk 0:03:01.8]} 17... Kf7 {[%clk 0:02:43.7]}
18. f3 {[%clk 0:03:01.5]} 18... Bg6 {[%clk 0:02:43.2]} 19. Bf1 {[%clk
0:03:02.9]} 19... a6 {[%clk 0:02:39.6]} 20. e4 {[%clk 0:03:02.6]} 20... Nb6
{[%clk 0:02:19.4]} 21. Bd6 {[%clk 0:02:50.7]} 21... Red8 {[%clk 0:02:18]} 22. c5
{[%clk 0:02:51.5]} 22... Nd7 {[%clk 0:02:16.1]} 23. Ra1 {[%clk 0:02:49.3]} 23...
Nf8 {[%clk 0:02:03.8]} 24. Ra4 {[%clk 0:02:46.5]} 24... Rd7 {[%clk 0:02:04.5]}
25. Rb4 {[%clk 0:02:47.3]} 25... Re8 {[%clk 0:02:03.1]} 26. Rb6 {[%clk
0:02:43.5]} 26... Rc8 {[%clk 0:02:02.2]} 27. Kf2 {[%clk 0:02:39.4]} 27... h6
{[%clk 0:01:51]} 28. Ke3 {[%clk 0:02:37.5]} 28... Nh7 {[%clk 0:01:51.8]} 29. h4
{[%clk 0:02:27.7]} 29... h5 {[%clk 0:01:49.4]} 30. Ra1 {[%clk 0:02:26.6]} 30...
f5 {[%clk 0:01:48.5]} 31. e5 {[%clk 0:02:25.9]} 31... Ra8 {[%clk 0:01:30.4]} 32.
Ra4 {[%clk 0:02:25.3]} 32... Ke8 {[%clk 0:01:25.6]} 33. Rab4 {[%clk 0:02:25.8]}
33... Ra7 {[%clk 0:01:25.6]} 34. Bb8 {[%clk 0:02:26.2]} 34... Ra8 {[%clk
0:01:25.2]} 35. Rxb7 {[%clk 0:02:26]} 35... Nf8 {[%clk 0:01:22.2]} 36. Bd6
{[%clk 0:02:23]} 36... Rxb7 {[%clk 0:01:22.7]} 37. Rxb7 {[%clk 0:02:24]} 37...
Nd7 {[%clk 0:01:23.7]} 38. Rb6 {[%clk 0:02:15.4]} 38... Nxb6 {[%clk 0:01:21.6]}
39. cxb6 {[%clk 0:02:17.3]} 39... f4+ {[%clk 0:00:51.2]} 40. Kd2 {[%clk
0:02:16.4]} 1-0